fUSD/lending_fUSD_20251011
["ID","MTS","AMOUNT","RATE_DAILY","PERIOD"]
[390773988,1760142705793,-2126.14,0.00019452,2]
[390773989,1760142705809,-4697.04,0.00019452,2]
[390773990,1760142705820,-969.66,0.00019452,2]
[390773991,1760142705830,-500.0,0.00019452,2]
[390773992,1760142705840,-500.0,0.00019452,2]
[390773993,1760142705851,-500.0,0.00019452,2]
[390773994,1760142705861,-500.0,0.00019452,2]
[390773995,1760142705871,-500.0,0.00019452,2]
[390773996,1760142705882,-500.0,0.00019452,2]
[390773997,1760142705892,-500.0,0.00019452,2]
[390773998,1760142705902,-3251.5,0.00019452,2]
[390773999,1760142705913,-2256.53,0.00019452,2]
[390774000,1760142705923,-1140.15,0.00019452,2]
[390774001,1760142705933,-1170.33,0.00019452,2]
[390774002,1760142705943,-2163.91,0.00019452,2]
[390774003,1760142705954,-500.0,0.00019452,2]
[390774004,1760142705966,-151.0,0.00019452,7]
[390774005,1760142705976,-1058.44,0.00019452,2]
[390774006,1760142705987,-500.0,0.00019452,2]
[390774007,1760142705997,-500.0,0.00019452,2]
[390774008,1760142706007,-3953.57,0.00019452,2]
[390774009,1760142706018,-151.0,0.00019452,7]
[390774010,1760142706028,-400.0,0.00019452,2]
[390774011,1760142706038,-500.0,0.00019452,2]
[390774012,1760142706048,-1895.06,0.00019452,2]
[390774013,1760142706058,-801.11884,0.00019452,7]
[390774014,1760142706068,-801.11884,0.00019452,7]
[390774015,1760142706079,-500.0,0.00019452,2]
[390774016,1760142706089,-3404.84,0.00019452,2]
[390774017,1760142706099,-587.58,0.00019452,2]
[390774018,1760142706109,-801.11884,0.00019452,7]
[390774019,1760142706120,-500.0,0.00019452,2]
[390774020,1760142706131,-801.11884,0.00019452,7]
[390774021,1760142706141,-151.0,0.00019452,7]
[390774022,1760142706151,-4212.14,0.00019452,2]
[390774023,1760142706161,-151.0,0.00019452,7]
[390774024,1760142706170,-500.0,0.00019452,2]
[390774025,1760142706181,-151.0,0.00019452,7]
[390774026,1760142706190,-500.0,0.00019452,2]
[390774027,1760142706200,-500.0,0.00019452,2]
[390774028,1760142706212,-2366.82,0.00019452,2]
[390774029,1760142706223,-151.0,0.00019452,7]
[390774030,1760142706233,-3950.35,0.00019452,2]
[390774031,1760142706244,-500.0,0.00019452,2]
[390774032,1760142706254,-500.0,0.00019452,2]
[390774033,1760142706264,-500.0,0.00019452,2]
[390774034,1760142706275,-500.0,0.00019452,2]
[390774035,1760142706286,-500.0,0.00019452,2]
[390774036,1760142706301,-2774.39,0.00019452,2]
[390774037,1760142706311,-153.415817,0.00019452,7]
[390774038,1760142706321,-151.0,0.00019452,7]
[390774039,1760142706331,-797.54,0.00019452,2]
[390774040,1760142706341,-151.0,0.00019452,7]
[390774041,1760142706351,-500.0,0.00019452,2]
[390774042,1760142706361,-500.0,0.00019452,2]
[390774043,1760142706371,-151.0,0.00019452,7]
[390774044,1760142706382,-151.0,0.00019452,7]
[390774045,1760142706393,-668.2378,0.00019452,7]
[390774046,1760142706405,-500.0,0.00019452,2]
[390774047,1760142706416,-151.0,0.00019452,7]
[390774048,1760142706426,-500.0,0.00019452,2]
[390774049,1760142706436,-668.2378,0.00019452,7]
[390774050,1760142706447,-2740.92,0.00019452,2]
[390774051,1760142706460,-500.0,0.00019452,2]
[390774052,1760142706471,-151.0,0.00019452,7]
[390774053,1760142706480,-3467.06,0.00019452,2]
[390774054,1760142706490,-668.2378,0.00019452,7]
[390774055,1760142706500,-500.0,0.00019452,2]
[390774056,1760142706510,-668.2378,0.00019452,7]
[390774057,1760142706520,-501.04,0.00019452,2]
[390774058,1760142706530,-451.4,0.00019452,2]
[390774059,1760142706541,-500.0,0.00019452,2]
[390774060,1760142706551,-683.16,0.00019452,2]
[390774061,1760142706561,-555.93444184,0.00019452,2]
[390774062,1760142706571,-500.0,0.00019452,2]
[390774063,1760142706581,-500.0,0.00019452,2]
[390774064,1760142706592,-254.236408,0.00019452,7]
[390774065,1760142706602,-254.236408,0.00019452,7]
[390774066,1760142706612,-958.33,0.00019452,2]
[390774067,1760142706622,-577.114537,0.00019452,7]
[390774068,1760142706632,-500.0,0.00019452,2]
[390774069,1760142706661,-1903.74,0.00019452,2]
[390774070,1760142706670,-254.236408,0.00019452,7]
[390774071,1760142706680,-577.114537,0.00019452,7]
[390774072,1760142706690,-4195.48,0.00019452,2]
[390774073,1760142706700,-812.31,0.00019452,2]
[390774074,1760142706712,-254.236408,0.00019452,7]
[390774075,1760142706722,-205.479152,0.00019452,7]
[390774076,1760142706732,-284.00097,0.00019452,7]
[390774077,1760142706742,-500.0,0.00019452,2]
[390774078,1760142706753,-577.114537,0.00019452,7]
[390774079,1760142706763,-205.479152,0.00019452,7]
[390774080,1760142706772,-952.45,0.00019452,2]
[390774081,1760142706782,-500.0,0.00019452,2]
[390774082,1760142706792,-577.114537,0.00019452,7]
[390774083,1760142706801,-500.0,0.00019452,2]
[390774084,1760142706812,-205.479152,0.00019452,7]
[390774085,1760142706822,-500.0,0.00019452,2]
[390774086,1760142706832,-500.0,0.00019452,2]
[390774087,1760142706844,-500.0,0.00019452,2]
[390774088,1760142706854,-151.0,0.00019452,7]
[390774089,1760142706864,-205.479152,0.00019452,7]
[390774090,1760142706874,-500.0,0.00019452,2]
[390774091,1760142706890,-1315.66,0.00019452,2]
[390774092,1760142706900,-151.0,0.00019452,7]
[390774093,1760142706910,-500.0,0.00019452,2]
[390774094,1760142706920,-910.22,0.00019452,2]
[390774095,1760142706931,-792.54,0.00019452,2]
[390774096,1760142706940,-151.0,0.00019452,7]
[390774097,1760142706951,-151.0,0.00019452,7]
[390774098,1760142706963,-782.14,0.00019452,2]
[390774099,1760142706973,-500.0,0.00019452,2]
[390774100,1760142706983,-151.0,0.00019452,7]
[390774101,1760142706992,-503.283668,0.00019452,7]
[390774102,1760142707002,-284.00097,0.00019452,7]
[390774103,1760142707012,-500.0,0.00019452,2]
[390774104,1760142707022,-151.0,0.00019452,7]
[390774105,1760142707031,-151.0,0.00019452,7]
[390774106,1760142707041,-151.0,0.00019452,7]
[390774107,1760142707051,-151.0,0.00019452,7]
[390774108,1760142707061,-503.283668,0.00019452,7]
[390774109,1760142707070,-284.00097,0.00019452,7]
[390774110,1760142707080,-151.0,0.00019452,7]
[390774111,1760142707090,-151.0,0.00019452,7]
[390774112,1760142707099,-2514.71,0.00019452,2]
[390774113,1760142707109,-151.0,0.00019452,7]
[390774114,1760142707119,-500.0,0.00019452,2]
[390774115,1760142707128,-503.283668,0.00019452,7]
[390774116,1760142707138,-151.0,0.00019452,7]
[390774117,1760142707147,-284.00097,0.00019452,7]
[390774118,1760142707157,-1854.49,0.00019452,2]
[390774119,1760142707167,-703.67,0.00019452,2]
[390774120,1760142707179,-1965.71,0.00019452,2]
[390774121,1760142707189,-500.0,0.00019452,2]
[390774122,1760142707200,-503.283668,0.00019452,7]
[390774123,1760142707212,-500.0,0.00019452,2]
[390774124,1760142707221,-500.0,0.00019452,2]
[390774125,1760142707231,-991.52,0.00019452,2]
[390774126,1760142707240,-500.0,0.00019452,2]
[390774127,1760142707251,-154.310889,0.00019452,7]
[390774128,1760142707261,-500.0,0.00019452,2]
[390774129,1760142707270,-3866.33,0.00019452,2]
[390774130,1760142707444,-154.310889,0.00019452,7]
[390774131,1760142707455,-500.0,0.00019452,2]
[390774132,1760142707467,-500.0,0.00019452,2]
[390774133,1760142707477,-154.310889,0.00019452,7]
[390774134,1760142707487,-500.0,0.00019452,2]
[390774135,1760142707497,-500.0,0.00019452,2]
[390774136,1760142707506,-575.45,0.00019452,2]
[390774137,1760142707515,-154.310889,0.00019452,7]
[390774138,1760142707524,-500.0,0.00019452,2]
[390774139,1760142707534,-600.11,0.00019452,2]
[390774140,1760142707543,-500.0,0.00019452,2]
[390774141,1760142707552,-1609.29,0.00019452,2]
[390774142,1760142707562,-501.88342367,0.00019452,2]
[390774143,1760142707571,-501.18061604,0.00019452,2]
[390774144,1760142707580,-500.0,0.00019452,2]
[390774145,1760142707589,-2648.01,0.00019452,2]
[390774146,1760142707599,-227.867378,0.00019452,7]
[390774147,1760142707608,-2569.69,0.00019452,2]
[390774148,1760142707617,-1020.14,0.00019452,2]
[390774149,1760142707627,-500.0,0.00019452,2]
[390774150,1760142707636,-500.0,0.00019452,2]
[390774151,1760142707645,-1573.12,0.00019452,2]
[390774152,1760142707655,-227.867378,0.00019452,7]
[390774153,1760142707664,-2243.48,0.00019452,2]
[390774154,1760142707673,-500.0,0.00019452,2]
[390774155,1760142707683,-500.0,0.00019452,2]
[390774156,1760142707692,-500.0,0.00019452,2]
[390774157,1760142707702,-500.0,0.00019452,2]
[390774158,1760142707714,-227.867378,0.00019452,7]
[390774159,1760142707724,-20319.41,0.00019452,2]
[390774160,1760142707734,-500.0,0.00019452,2]
[390774161,1760142707743,-500.0,0.00019452,2]
[390774162,1760142707753,-227.867378,0.00019452,7]
[390774163,1760142707762,-151.0,0.00019452,7]
[390774164,1760142707772,-500.0,0.00019452,2]
[390774165,1760142707781,-500.0,0.00019452,2]
[390774166,1760142707791,-4375.47,0.00019452,2]
[390774167,1760142707801,-500.0,0.00019452,2]
[390774168,1760142707810,-6748.37,0.00019452,2]
[390774169,1760142707819,-196.058665,0.00019452,7]
[390774170,1760142707829,-500.0,0.00019452,2]
[390774171,1760142707838,-481.396099,0.00019452,7]
[390774172,1760142707848,-544.33,0.00019452,2]
[390774173,1760142707858,-196.058665,0.00019452,7]
[390774174,1760142707867,-481.396099,0.00019452,7]
[390774175,1760142707876,-592.73,0.00019452,2]
[390774176,1760142707885,-1920.53,0.00019452,2]
[390774177,1760142707895,-196.058665,0.00019452,7]
[390774178,1760142707904,-693.85,0.00019452,2]
[390774179,1760142707913,-402.19004504,0.00019452,2]
[390774180,1760142707923,-500.0,0.00019452,2]
[390774181,1760142707932,-165.836532,0.00019452,7]
[390774182,1760142707941,-481.396099,0.00019452,7]
[390774183,1760142707950,-151.0,0.00019452,7]
[390774184,1760142707961,-1144.483981,0.00019452,7]
[390774185,1760142707971,-196.058665,0.00019452,7]
[390774186,1760142707980,-165.836532,0.00019452,7]
[390774187,1760142707990,-481.396099,0.00019452,7]
[390774188,1760142708000,-860.62,0.00019452,2]
[390774189,1760142708010,-1144.483981,0.00019452,7]
[390774190,1760142708019,-165.836532,0.00019452,7]
[390774191,1760142708033,-500.0,0.00019452,2]
[390774192,1760142708042,-1424.63,0.00019452,2]
[390774193,1760142708050,-2571.55,0.00019452,2]
[390774194,1760142708059,-500.0,0.00019452,2]
[390774195,1760142708068,-151.0,0.00019452,7]
[390774196,1760142708078,-1144.483981,0.00019452,7]
[390774197,1760142708087,-6105.45,0.00019452,2]
[390774198,1760142708096,-151.0,0.00019452,7]
[390774199,1760142708106,-165.836532,0.00019452,7]
[390774200,1760142708115,-151.0,0.00019452,7]
[390774201,1760142708127,-151.0,0.00019452,7]
[390774202,1760142708137,-2721.01,0.00019452,2]
[390774203,1760142708146,-500.0,0.00019452,2]
[390774204,1760142708155,-1144.483981,0.00019452,7]
[390774205,1760142708164,-1503.99,0.00019452,2]
[390774206,1760142708173,-1857.19,0.00019452,2]
[390774207,1760142708183,-151.0,0.00019452,7]
[390774208,1760142708192,-500.0,0.00019452,2]
[390774209,1760142708201,-151.0,0.00019452,7]
[390774210,1760142708211,-230.855137,0.00019452,7]
[390774211,1760142708219,-500.0,0.00019452,2]
[390774212,1760142708228,-402.63897781,0.00019452,2]
[390774213,1760142708237,-500.0,0.00019452,2]
[390774214,1760142708246,-151.0,0.00019452,7]
[390774215,1760142708255,-2449.21,0.00019452,2]
[390774216,1760142708264,-500.0,0.00019452,2]
[390774217,1760142708273,-1869.38,0.00019452,2]
[390774218,1760142708282,-271.062881,0.00019452,7]
[390774219,1760142708292,-151.0,0.00019452,7]
[390774220,1760142708301,-6122.84,0.00019452,2]
[390774221,1760142708313,-2872.75,0.00019452,2]
[390774222,1760142708323,-600.95,0.00019452,2]
[390774223,1760142708332,-271.062881,0.00019452,7]
[390774224,1760142708342,-151.0,0.00019452,7]
[390774225,1760142708351,-1425.3,0.00019452,2]
[390774226,1760142708361,-500.0,0.00019452,2]
[390774227,1760142708370,-500.0,0.00019452,2]
[390774228,1760142708381,-778.8,0.00019452,2]
[390774229,1760142708391,-500.0,0.00019452,2]
[390774230,1760142708400,-151.0,0.00019452,7]
[390774231,1760142708409,-500.0,0.00019452,2]
[390774232,1760142708418,-271.062881,0.00019452,7]
[390774233,1760142708428,-151.0,0.00019452,7]
[390774234,1760142708437,-271.062881,0.00019452,7]
[390774235,1760142708446,-500.0,0.00019452,2]
[390774236,1760142708456,-401.59854413,0.00019452,2]
[390774237,1760142708467,-276.213807,0.00019452,7]
[390774238,1760142708477,-7402.14,0.00019452,2]
[390774239,1760142708487,-152.895389,0.00019452,7]
[390774240,1760142708496,-644.0,0.00019452,2]
[390774241,1760142708506,-249.315346,0.00019452,7]
[390774242,1760142708516,-151.0,0.00019452,7]
[390774243,1760142708526,-151.0,0.00019452,7]
[390774244,1760142708535,-249.315346,0.00019452,7]
[390774245,1760142708545,-151.0,0.00019452,7]
[390774246,1760142708555,-4346.04,0.00019452,2]
[390774247,1760142708564,-500.0,0.00019452,2]
[390774248,1760142708574,-151.0,0.00019452,7]
[390774249,1760142708584,-1876.85,0.00019452,2]
[390774250,1760142708593,-249.315346,0.00019452,7]
[390774251,1760142708603,-3738.92,0.00019452,2]
[390774252,1760142708613,-495.838628,0.00019452,7]
[390774253,1760142708622,-500.0,0.00019452,2]
[390774254,1760142708631,-151.0,0.00019452,7]
[390774255,1760142708641,-249.315346,0.00019452,7]
[390774256,1760142708651,-495.838628,0.00019452,7]
[390774257,1760142708661,-151.0,0.00019452,7]
[390774258,1760142708670,-500.0,0.00019452,2]
[390774259,1760142708680,-500.0,0.00019452,2]
[390774260,1760142708708,-151.0,0.00019452,7]
[390774261,1760142708719,-151.0,0.00019452,7]
[390774262,1760142708730,-154.867441,0.00019452,7]
[390774263,1760142708740,-495.838628,0.00019452,7]
[390774264,1760142708751,-1277.834262,0.00019452,7]
[390774265,1760142708761,-151.0,0.00019452,7]
[390774266,1760142708771,-894.9,0.00019452,2]
[390774267,1760142708782,-8914.27,0.00019452,2]
[390774268,1760142708792,-151.0,0.00019452,7]
[390774269,1760142708801,-495.838628,0.00019452,7]
[390774270,1760142708811,-154.867441,0.00019452,7]
[390774271,1760142708820,-1277.834262,0.00019452,7]
[390774272,1760142708829,-151.0,0.00019452,7]
[390774273,1760142708839,-4421.49,0.00019452,2]
[390774274,1760142708849,-154.867441,0.00019452,7]
[390774275,1760142708858,-500.0,0.00019452,2]
[390774276,1760142708867,-151.0,0.00019452,7]
[390774277,1760142708876,-151.0,0.00019452,7]
[390774278,1760142708886,-695.96,0.00019452,2]
[390774279,1760142708895,-154.867441,0.00019452,7]
[390774280,1760142708905,-866.72,0.00019452,2]
[390774281,1760142708914,-151.0,0.00019452,7]
[390774282,1760142708924,-500.0,0.00019452,2]
[390774283,1760142708934,-151.0,0.00019452,7]
[390774284,1760142708945,-500.0,0.00019452,2]
[390774285,1760142708955,-151.0,0.00019452,7]
[390774286,1760142708967,-500.0,0.00019452,2]
[390774287,1760142708977,-151.0,0.00019452,7]
[390774288,1760142708987,-3569.59,0.00019452,2]
[390774289,1760142708997,-500.0,0.00019452,2]
[390774290,1760142709007,-151.0,0.00019452,7]
[390774291,1760142709017,-151.0,0.00019452,7]
[390774292,1760142709027,-500.0,0.00019452,2]
[390774293,1760142709036,-6033.7,0.00019452,2]
[390774294,1760142709046,-777.52,0.00019452,2]
[390774295,1760142709056,-500.0,0.00019452,2]
[390774296,1760142709066,-1277.834262,0.00019452,7]
[390774297,1760142709076,-151.0,0.00019452,7]
[390774298,1760142709086,-668.57,0.00019452,2]
[390774299,1760142709096,-1977.1,0.00019452,2]
[390774300,1760142709106,-527.56,0.00019452,2]
[390774301,1760142709116,-151.0,0.00019452,7]
[390774302,1760142709130,-1277.834262,0.00019452,7]
[390774303,1760142709139,-1539.28,0.00019452,2]
[390774304,1760142709149,-2026.19,0.00019452,2]
[390774305,1760142709158,-500.0,0.00019452,2]
[390774306,1760142709167,-500.0,0.00019452,2]
[390774307,1760142709177,-3133.45,0.00019452,2]
[390774308,1760142709186,-500.0,0.00019452,2]
[390774309,1760142709197,-151.0,0.00019452,7]
[390774310,1760142709208,-1830.98,0.00019452,2]
[390774311,1760142709220,-500.0,0.00019452,2]
[390774312,1760142709230,-1980.65,0.00019452,2]
[390774313,1760142709240,-2274.84,0.00019452,2]
[390774314,1760142709250,-500.0,0.00019452,2]
[390774315,1760142709261,-2314.66,0.00019452,2]
[390774316,1760142709271,-1780.92,0.00019452,2]
[390774317,1760142709281,-500.0,0.00019452,2]
[390774318,1760142709291,-674.856579,0.00019452,7]
[390774319,1760142709302,-500.0,0.00019452,2]
[390774320,1760142709315,-500.0,0.00019452,2]
[390774321,1760142709326,-674.856579,0.00019452,7]
[390774322,1760142709336,-500.0,0.00019452,2]
[390774323,1760142709346,-151.0,0.00019452,7]
[390774324,1760142709357,-500.0,0.00019452,2]
[390774325,1760142709367,-674.856579,0.00019452,7]
[390774326,1760142709377,-851.45,0.00019452,2]
[390774327,1760142709389,-14237.18,0.00019452,2]
[390774328,1760142709399,-151.0,0.00019452,7]
[390774329,1760142709410,-14788.81,0.00019452,2]
[390774330,1760142709422,-644.47,0.00019452,2]
[390774331,1760142709433,-674.856579,0.00019452,7]
[390774332,1760142709443,-151.0,0.00019452,7]
[390774333,1760142709453,-1586.59,0.00019452,2]
[390774334,1760142709465,-151.0,0.00019452,7]
[390774335,1760142709475,-502.19371988,0.00019452,2]
[390774336,1760142709486,-1080.82,0.00019452,2]
[390774337,1760142709497,-3005.36,0.00019452,2]
[390774338,1760142709507,-611.37,0.00019452,2]
[390774339,1760142709517,-151.0,0.00019452,7]
[390774340,1760142709531,-151.0,0.00019452,7]
[390774341,1760142709541,-500.0,0.00019452,2]
[390774342,1760142709551,-151.0,0.00019452,7]
[390774343,1760142709562,-530.74,0.00019452,2]
[390774344,1760142709573,-151.0,0.00019452,7]
[390774345,1760142709582,-172.52683,0.00019452,7]
[390774346,1760142709593,-3375.06,0.00019452,2]
[390774347,1760142709603,-151.0,0.00019452,7]
[390774348,1760142709613,-2225.09,0.00019452,2]
[390774349,1760142709623,-500.0,0.00019452,2]
[390774350,1760142709633,-502.9,0.00019452,2]
[390774351,1760142709644,-1091.351732,0.00019452,7]
[390774352,1760142709655,-151.0,0.00019452,7]
[390774353,1760142709666,-1834.6,0.00019452,2]
[390774354,1760142709676,-500.0,0.00019452,2]
[390774355,1760142709687,-151.0,0.00019452,7]
[390774356,1760142709698,-1091.351732,0.00019452,7]
[390774357,1760142709709,-404.72497148,0.00019452,2]
[390774358,1760142709720,-2462.09,0.00019452,2]
[390774359,1760142709731,-1091.351732,0.00019452,7]
[390774360,1760142709741,-214.63236024,0.00019452,2]
[390774361,1760142709755,-719.18,0.00019452,2]
[390774362,1760142709766,-151.0,0.00019452,7]
[390774363,1760142709778,-1091.351732,0.00019452,7]
[390774364,1760142709789,-500.0,0.00019452,2]
[390774365,1760142709800,-600.59,0.00019452,2]
[390774366,1760142709812,-500.0,0.00019452,2]
[390774367,1760142709823,-2561.72,0.00019452,2]
[390774368,1760142709833,-151.0,0.00019452,7]
[390774369,1760142709843,-151.0,0.00019452,7]
[390774370,1760142709854,-243.544536,0.00019452,7]
[390774371,1760142709863,-500.0,0.00019452,2]
[390774372,1760142709875,-3360.8,0.00019452,2]
[390774373,1760142709886,-500.0,0.00019452,2]
[390774374,1760142709898,-151.0,0.00019452,7]
[390774375,1760142709909,-1684.45,0.00019452,2]
[390774376,1760142709919,-151.0,0.00019452,7]
[390774377,1760142709930,-850.93,0.00019452,2]
[390774378,1760142709939,-243.544536,0.00019452,7]
[390774379,1760142709950,-2018.83,0.00019452,2]
[390774380,1760142709962,-3922.55,0.00019452,2]
[390774381,1760142709972,-151.0,0.00019452,7]
[390774382,1760142709985,-151.0,0.00019452,7]
[390774383,1760142709995,-1643.92,0.00019452,2]
[390774384,1760142710004,-1555.090598,0.00019452,7]
[390774385,1760142710014,-500.0,0.00019452,2]
[390774386,1760142710024,-1555.090598,0.00019452,7]
[390774387,1760142710036,-151.0,0.00019452,7]
[390774388,1760142710046,-500.0,0.00019452,2]
[390774389,1760142710057,-1555.090598,0.00019452,7]
[390774390,1760142710067,-151.0,0.00019452,7]
[390774391,1760142710078,-151.0,0.00019452,7]
[390774392,1760142710088,-151.0,0.00019452,7]
[390774393,1760142710098,-1555.090598,0.00019452,7]
[390774394,1760142710108,-151.0,0.00019452,7]
[390774395,1760142710119,-155.647826,0.00019452,7]
[390774396,1760142710130,-151.0,0.00019452,7]
[390774397,1760142710140,-30233.86,0.00019452,2]
[390774398,1760142710151,-243.544536,0.00019452,7]
[390774399,1760142710160,-2841.52,0.00019452,2]
[390774400,1760142710170,-151.0,0.00019452,7]
[390774401,1760142710181,-151.0,0.00019452,7]
[390774402,1760142710191,-155.647826,0.00019452,7]
[390774403,1760142710201,-3321.42,0.00019452,2]
[390774404,1760142710213,-12001.68,0.00019452,2]
[390774405,1760142710223,-500.0,0.00019452,2]
[390774406,1760142710235,-500.0,0.00019452,2]
[390774407,1760142710245,-500.0,0.00019452,2]
[390774408,1760142710254,-243.544536,0.00019452,7]
[390774409,1760142710266,-500.0,0.00019452,2]
[390774410,1760142710277,-4419.01,0.00019452,2]
[390774411,1760142710287,-500.0,0.00019452,2]
[390774412,1760142710296,-155.647826,0.00019452,7]
[390774413,1760142710306,-151.0,0.00019452,7]
[390774414,1760142710319,-1606.96,0.00019452,2]
[390774415,1760142710328,-833.33,0.00019452,2]
[390774416,1760142710339,-570.49,0.00019452,2]
[390774417,1760142710349,-155.012466,0.00019452,7]
[390774418,1760142710359,-155.647826,0.00019452,7]
[390774419,1760142710368,-724.07,0.00019452,2]
[390774420,1760142710378,-635.0,0.00019452,2]
[390774421,1760142710389,-269.713542,0.00019452,7]
[390774422,1760142710398,-151.0,0.00019452,7]
[390774423,1760142710407,-500.0,0.00019452,2]
[390774424,1760142710416,-269.713542,0.00019452,7]
[390774425,1760142710425,-151.0,0.00019452,7]
[390774426,1760142710435,-151.0,0.00019452,7]
[390774427,1760142710444,-269.713542,0.00019452,7]
[390774428,1760142710470,-26804.63,0.00019452,2]
[390774429,1760142710482,-151.0,0.00019452,7]
[390774430,1760142710492,-835.7,0.00019452,2]
[390774431,1760142710502,-1294.95,0.00019452,2]
[390774432,1760142710514,-3184.49,0.00019452,2]
[390774433,1760142710524,-269.713542,0.00019452,7]
[390774434,1760142710534,-506.12962492,0.00019452,2]
[390774435,1760142710543,-1013.11,0.00019452,2]
[390774436,1760142710551,-151.0,0.00019452,7]
[390774437,1760142710561,-500.0,0.00019452,2]
[390774438,1760142710570,-570.14,0.00019452,2]
[390774439,1760142710580,-1232.27,0.00019452,2]
[390774440,1760142710590,-7295.45,0.00019452,2]
[390774441,1760142710600,-533.27,0.00019452,2]
[390774442,1760142710608,-1563.12,0.00019452,2]
[390774443,1760142710616,-500.0,0.00019452,2]
[390774444,1760142710627,-500.95370991,0.00019452,2]
[390774445,1760142710637,-155.012466,0.00019452,7]
[390774446,1760142710646,-654.346444,0.00019452,7]
[390774447,1760142710657,-326.703819,0.00019452,7]
[390774448,1760142710666,-155.012466,0.00019452,7]
[390774449,1760142710677,-654.346444,0.00019452,7]
[390774450,1760142710687,-1687.35,0.00019452,2]
[390774451,1760142710696,-326.703819,0.00019452,7]
[390774452,1760142710706,-654.346444,0.00019452,7]
[390774453,1760142710717,-155.012466,0.00019452,7]
[390774454,1760142710725,-4491.0,0.00019452,2]
[390774455,1760142710735,-500.0,0.00019452,2]
[390774456,1760142710746,-3153.99,0.00019452,2]
[390774457,1760142710758,-326.703819,0.00019452,7]
[390774458,1760142710769,-2375.94,0.00019452,2]
[390774459,1760142710780,-654.346444,0.00019452,7]
[390774460,1760142710790,-500.0,0.00019452,2]
[390774461,1760142710803,-326.703819,0.00019452,7]
[390774462,1760142710813,-500.0,0.00019452,2]
[390774463,1760142710825,-151.0,0.00019452,7]
[390774464,1760142710836,-1687.38,0.00019452,2]
[390774465,1760142710847,-151.0,0.00019452,7]
[390774466,1760142710857,-295.69124,0.00019452,7]
[390774467,1760142710868,-151.0,0.00019452,7]
[390774468,1760142710880,-500.0,0.00019452,2]
[390774469,1760142710891,-501.66320449,0.00019452,2]
[390774470,1760142710901,-500.0,0.00019452,2]
[390774471,1760142710912,-295.69124,0.00019452,7]
[390774472,1760142710923,-151.0,0.00019452,7]
[390774473,1760142710934,-1244.31,0.00019452,2]
[390774474,1760142710945,-500.0,0.00019452,2]
[390774475,1760142710955,-295.69124,0.00019452,7]
[390774476,1760142710969,-2046.65,0.00019452,2]
[390774477,1760142710980,-500.0,0.00019452,2]
[390774478,1760142710991,-773.53,0.00019452,2]
[390774479,1760142711001,-500.0,0.00019452,2]
[390774480,1760142711012,-500.0,0.00019452,2]
[390774481,1760142711022,-1652.07,0.00019452,2]
[390774482,1760142711034,-295.69124,0.00019452,7]
[390774483,1760142711045,-500.0,0.00019452,2]
[390774484,1760142711054,-928.93,0.00019452,2]
[390774485,1760142711065,-2413.9,0.00019452,2]
[390774486,1760142711075,-500.0,0.00019452,2]
[390774487,1760142711085,-500.0,0.00019452,2]